bitfinex/quotes_ETHUSD_20241024
["timestamp","ask_amount","ask_price","bid_price","bid_amount"]
[1729729260251,3.97314,2516.9,2516.6,1.8221213]
[1729729260403,3.97358,2516.7,2516.4,1.4549]
[1729729260605,3.97333,2516.8,2516.7,0.05643693]
[1729729260803,3.97365,2516.6,2516.4,1.4549]
[1729729261015,3.97365,2516.6,2516.5,0.05697843]
[1729729261742,3.9733,2516.8,2516.5,0.0575701]
[1729729264448,5.48922,2516.9,2516.5,1.87687229]
[1729729264604,3.97288,2517.1,2516.6,3.27420219]
[1729729264806,6.97299,2517.0,2516.6,4.41009048]
[1729729265010,6.97299,2517.0,2516.2,0.24859866]
[1729729265011,3.97345,2516.7,2516.2,2.06790085]
[1729729265235,3.97345,2516.7,2516.2,1.81930219]
[1729729265425,3.97364,2516.6,2516.3,1.81930219]
[1729729265620,3.97364,2516.6,2516.2,1.81930219]
[1729729267035,3.97364,2516.6,2516.3,1.81930219]
[1729729267239,3.97364,2516.6,2516.2,1.81930219]
[1729729267417,3.97364,2516.6,2516.3,1.15490864]
[1729729268254,3.97384,2516.5,2516.1,3.60052641]
[1729729268466,3.97384,2516.5,2516.1,3.27420219]
[1729729268751,3.97384,2516.5,2516.1,3.52280728]
[1729729268955,3.97384,2516.5,2516.1,7.49712728]
[1729729269164,3.97384,2516.5,2516.2,1.81930219]
[1729729269448,3.97384,2516.5,2516.1,7.49712728]
[1729729269647,3.97384,2516.5,2516.2,1.14716873]
[1729729270441,7.94777,2516.5,2516.2,1.14716873]
[1729729270666,5.55314,2516.5,2516.0,1.81930219]
[1729729270877,5.55314,2516.5,2516.1,3.97439]
[1729729271067,5.55314,2516.5,2516.0,5.79374219]
[1729729271068,5.55314,2516.5,2516.0,6.04235588]
[1729729271248,5.55314,2516.5,2516.0,10.01678588]
[1729729271455,5.55314,2516.5,2516.1,1.81930219]
[1729729271658,1.5793,2516.5,2516.2,1.00167859]
[1729729271856,1.5793,2516.7,2516.4,3.97388]
[1729729272076,3.97326,2516.9,2516.5,1.81930219]
[1729729272248,3.97326,2516.9,2516.4,5.79318219]
[1729729272883,8.55235,2517.0,2516.5,5.79295219]
[1729729273090,8.55235,2517.0,2516.6,4.95028322]
[1729729273383,8.55235,2517.0,2516.6,0.97668322]
[1729729273788,3.97324,2516.9,2516.6,0.97668322]
[1729729274278,3.97334,2516.8,2516.6,0.97668322]
[1729729274488,3.97324,2516.9,2516.6,0.97668322]
[1729729275664,7.94647,2516.9,2516.7,0.05406914]
[1729729275849,3.97329,2516.8,2516.7,0.05406914]
[1729729276249,3.97329,2516.8,2516.4,1.81930219]
[1729729276449,3.97329,2516.8,2516.7,0.05226684]
[1729729276684,3.97329,2516.8,2516.5,0.72548522]
[1729729276887,3.97329,2516.8,2516.7,0.05226684]
[1729729277054,3.97329,2516.8,2516.5,0.72548522]
[1729729277254,3.97329,2516.8,2516.7,0.05226684]
[1729729277458,3.97329,2516.8,2516.5,0.72548522]
[1729729277687,3.97329,2516.8,2516.7,0.05226684]
[1729729278202,3.97329,2516.8,2516.5,0.72548522]
[1729729278203,3.97346,2516.7,2516.5,0.72548522]
[1729729278503,3.97424,2516.2,2516.0,20.01224615]
[1729729278698,3.97424,2516.2,2516.1,0.24861377]
[1729729279289,3.97449,2516.1,2515.8,3.60716533]
[1729729279497,3.97449,2516.1,2515.9,2.0679566]
[1729729279656,3.97449,2516.1,2515.8,3.60716533]
[1729729279996,3.97449,2516.1,2515.9,1.00686869]
[1729729280194,3.97425,2516.2,2515.9,0.75821753]
[1729729280395,3.97472,2515.9,2515.8,0.32636314]
[1729729280566,3.97472,2515.9,2515.4,7.25622219]
[1729729280762,3.97488,2515.8,2515.5,0.24868156]
[1729729280955,3.97488,2515.8,2515.4,3.28080219]
[1729729281297,7.94991,2515.8,2515.5,0.32808022]
[1729729281610,3.97503,2515.7,2515.4,1.4615]
[1729729282273,3.97523,2515.6,2515.3,0.24869314]
[1729729282475,3.97523,2515.6,2515.0,7.25683219]
[1729729282682,3.97523,2515.6,2515.1,2.06801676]
[1729729283000,3.97523,2515.6,2515.1,6.57848486]
[1729729283601,3.97523,2515.6,2515.2,1.81930219]
[1729729284499,3.97523,2515.6,2515.1,4.75918267]
[1729729284699,5.55434,2515.7,2515.1,4.75918267]
[1729729286112,5.55434,2515.7,2515.2,3.97581]
[1729729287810,1.5793,2515.7,2515.2,4.917144]
[1729729288026,8.58402,2515.9,2515.3,5.44297]
[1729729288225,8.58402,2515.9,2515.4,3.97547]
[1729729288583,1.6093,2515.9,2515.3,5.44297]
[1729729288722,3.97467,2516.0,2515.4,4.6139404]
[1729729289084,7.94934,2516.0,2515.4,4.6139404]
[1729729290413,1.6093,2515.4,2514.9,0.32647993]
[1729729290719,3.97566,2515.3,2514.9,0.32647993]
[1729729291700,3.97582,2515.2,2514.9,0.32647993]
[1729729292519,3.97568,2515.3,2514.9,0.32647993]
[1729729293343,3.97589,2515.2,2514.9,0.32647993]
[1729729293691,3.97608,2515.1,2514.9,0.32647993]
[1729729296939,3.97586,2515.2,2514.9,0.32647993]
[1729729299853,3.97577,2515.3,2514.9,0.32647993]
[1729729300020,3.0,2515.4,2515.0,3.97612]
[1729729300218,3.97545,2515.5,2515.1,1.4674]
[1729729301214,7.95089,2515.5,2515.1,1.4674]
[1729729301561,3.97544,2515.5,2515.0,3.97612]
[1729729301714,6.97516,2515.7,2514.9,0.32647993]
[1729729301715,3.97614,2515.0,2514.9,0.32647993]
[1729729302044,3.97614,2515.0,2514.5,3.97685]
[1729729302545,3.97599,2515.1,2514.6,5.44414]
[1729729304453,3.97599,2515.1,2514.6,5.44407]
[1729729304640,3.97584,2515.2,2514.7,3.97661]
[1729729304840,3.97599,2515.1,2514.7,3.97661]
[1729729305748,7.95178,2515.2,2514.8,0.04959566]
[1729729305952,3.97608,2515.1,2514.6,5.4441]
[1729729306250,3.97584,2515.2,2514.9,0.04959566]
[1729729306451,7.95175,2515.2,2514.7,3.97659]
[1729729306652,3.97584,2515.2,2515.0,0.04959566]
[1729729306951,3.97598,2515.1,2514.6,1.4674]
[1729729307157,3.97598,2515.1,2514.6,5.44416]
[1729729307397,3.97598,2515.1,2514.6,5.44409]
[1729729307671,7.95178,2515.2,2514.7,3.97661]
[1729729308766,3.97601,2515.1,2514.6,2.409516]
[1729729308950,3.97617,2515.0,2514.6,2.409516]
[1729729309371,3.97617,2515.0,2514.6,6.386276]
[1729729309745,3.97585,2515.2,2514.6,6.386276]
[1729729309958,3.976,2515.1,2514.6,9.42082]
[1729729310260,3.97585,2515.2,2514.6,1.4674]
[1729729310452,6.97568,2515.3,2514.8,3.97642]
[1729729311748,3.0,2515.3,2514.8,3.97642]
[1729729311941,3.97583,2515.2,2514.8,3.97642]
[1729729313153,3.97583,2515.2,2514.7,3.97661]
[1729729313358,3.97583,2515.2,2514.7,4.918691]
[1729729313682,3.97584,2515.2,2514.7,8.895201]
[1729729313846,3.97584,2515.2,2514.7,3.97653]
[1729729315778,6.97568,2515.3,2514.8,3.97645]
[1729729315976,3.97563,2515.4,2514.9,1.6056]
[1729729316279,3.97598,2515.1,2514.7,1.65780641]
[1729729316588,3.97598,2515.1,2514.8,0.24875498]
[1729729316890,3.97598,2515.1,2514.9,0.24876035]
[1729729317053,3.97598,2515.1,2514.7,5.58221]
[1729729317375,3.97598,2515.1,2514.8,0.24876018]
[1729729317547,3.97598,2515.1,2514.9,0.24876018]
[1729729317749,7.95206,2515.1,2514.7,1.6056]
[1729729318071,3.97598,2515.1,2514.8,0.2487601]
[1729729318272,3.97598,2515.1,2514.9,0.2487601]
[1729729318443,3.97598,2515.1,2514.7,1.6056]
[1729729318984,3.97598,2515.1,2514.8,0.24876307]
[1729729319141,3.97598,2515.1,2514.9,0.24876307]
[1729729319346,3.97598,2515.1,2514.7,5.58214]
[1729729319549,3.97598,2515.1,2514.8,0.24875921]
[1729729319771,3.97598,2515.1,2514.9,0.24875921]
[1729729320083,3.944873,2515.4,2515.0,3.97611]
[1729729320084,3.0,2515.4,2515.0,3.97611]
[1729729320254,3.0,2515.4,2515.1,0.24874806]
[1729729320454,3.97567,2515.3,2514.9,3.97629]
[1729729320654,6.97553,2515.4,2515.0,0.24874934]
[1729729320951,3.97568,2515.3,2515.0,0.04966596]
[1729729321580,3.97598,2515.1,2514.8,1.6056]
[1729729321883,7.95206,2515.1,2514.9,0.24875931]
[1729729322187,3.97598,2515.1,2514.8,1.6056]
[1729729322345,3.97598,2515.1,2514.9,0.24876615]
[1729729322550,3.97598,2515.1,2514.6,7.45746286]
[1729729322750,3.97598,2515.1,2514.7,0.24876646]
[1729729322960,3.97598,2515.1,2514.8,0.24876646]
[1729729323162,3.97598,2515.1,2514.6,7.45746286]
[1729729323484,3.97598,2515.1,2514.7,0.24876431]
[1729729323689,4.82281871,2515.4,2514.8,0.24876431]
[1729729323987,3.97704,2514.5,2514.3,0.32655784]
[1729729324157,3.97704,2514.5,2514.4,0.24880634]
[1729729324351,3.97704,2514.5,2514.4,0.24881353]
[1729729324882,5.47468,2514.6,2514.4,0.24881714]
[1729729325086,5.47468,2514.6,2514.1,1.87508924]
[1729729325298,5.47468,2514.6,2514.2,0.24880806]
[1729729325450,5.47468,2514.6,2514.3,0.24880972]
[1729729325646,5.47468,2514.6,2514.1,1.82281871]
[1729729325851,5.47468,2514.6,2514.2,0.24881169]
[1729729326064,5.47468,2514.6,2514.3,0.24881169]
[1729729326289,3.97657,2514.8,2514.1,0.7458285]
[1729729326486,7.95316,2514.8,2514.3,1.6056]
[1729729326784,3.97657,2514.8,2514.4,0.24880674]
[1729729326961,7.95315,2514.8,2514.3,1.6056]
[1729729327162,7.95315,2514.8,2514.4,0.24879701]
[1729729327356,3.0,2514.9,2514.4,3.97706]
[1729729327552,3.0,2514.9,2514.5,0.24878416]
[1729729327793,3.0,2514.9,2514.4,7.95411]
[1729729328093,3.0,2514.9,2514.5,0.24878001]
[1729729328290,7.95248,2515.0,2514.6,0.24878001]
[1729729328459,3.97623,2515.0,2514.5,1.08965748]
[1729729328661,7.95246,2515.0,2514.5,1.08965748]
[1729729329963,3.9764,2514.9,2514.5,1.08965748]
[1729729330194,3.97647,2514.8,2514.5,1.08965748]
[1729729330797,3.97647,2514.8,2514.3,1.6056]
[1729729331001,3.97662,2514.7,2514.3,5.58282]
[1729729331877,3.97666,2514.7,2514.3,1.6056]
[1729729333303,3.97647,2514.8,2514.3,5.58284]
[1729729333468,3.0,2515.2,2514.6,5.56767]
[1729729333791,0.02,2515.8,2514.9,3.97619]
[1729729333792,5.48404,2515.5,2514.9,3.97619]
[1729729334108,3.97567,2515.3,2514.8,5.56744]
[1729729334403,3.97567,2515.3,2514.8,2.9158279]
[1729729334606,3.97585,2515.2,2514.8,2.9158279]
[1729729335273,3.97567,2515.3,2514.8,6.8921779]
[1729729335481,3.97567,2515.3,2514.9,0.04677446]
[1729729335880,7.95148,2515.3,2514.9,0.04677446]
[1729729336404,3.97583,2515.2,2514.9,0.04677446]
[1729729337613,3.97598,2515.1,2514.9,0.04677446]
[1729729337912,3.97584,2515.2,2514.9,0.04677446]
[1729729338096,7.95176,2515.2,2514.9,0.04677446]
[1729729338659,3.97584,2515.2,2514.9,0.04677446]
[1729729338811,7.95181,2515.2,2514.9,0.04677446]
[1729729339718,3.97584,2515.2,2514.9,0.04677446]
[1729729339883,7.95176,2515.2,2514.9,0.04677446]
[1729729340081,3.97614,2515.0,2514.9,0.04677446]
[1729729340391,5.48461,2515.1,2514.4,1.591]
[1729729340392,3.97662,2514.7,2514.4,1.591]
[1729729341928,3.97639,2514.9,2513.7,1.91763579]
[1729729341929,3.97772,2514.0,2513.7,1.91763579]
[1729729342227,3.97804,2513.8,2513.7,1.591]
[1729729342522,3.97803,2513.9,2513.5,0.24885886]
[1729729342696,3.97816,2513.8,2513.4,1.591]
[1729729343417,3.97813,2513.8,2513.4,1.591]
[1729729343585,3.97813,2513.8,2513.4,3.7461]
[1729729344409,3.97832,2513.7,2513.4,1.591]
[1729729344615,3.97804,2513.8,2513.4,1.591]
[1729729344795,3.97804,2513.8,2513.2,3.97896]
[1729729345001,3.97803,2513.9,2513.2,4.55763539]
[1729729345301,3.97812,2513.8,2513.2,4.55763539]
[1729729345714,3.97787,2514.0,2513.3,1.5589]
[1729729345911,3.97787,2514.0,2513.4,3.97858]
[1729729346086,3.97789,2513.9,2513.3,1.5589]
[1729729346285,3.97804,2513.8,2513.3,1.5589]
[1729729346716,3.97789,2513.9,2513.3,1.5589]
[1729729346901,3.97772,2514.0,2513.4,3.97857]
[1729729347101,3.97772,2514.0,2513.4,7.95714]
[1729729347499,7.95553,2514.0,2513.4,3.97857]
[1729729347696,3.97788,2513.9,2513.3,1.5589]
[1729729348111,3.97788,2513.9,2513.3,5.53771]
[1729729348586,3.97788,2513.9,2513.3,1.5589]
[1729729349424,3.97782,2514.0,2513.3,5.53765]
[1729729349622,3.97861,2513.5,2513.0,0.24888885]
[1729729349825,5.31272898,2513.8,2512.9,4.30609977]
[1729729349826,3.0,2513.7,2512.9,4.30609977]
[1729729350035,6.9786,2513.5,2513.0,3.9792]
[1729729350204,3.0,2513.6,2513.0,3.9792]
[1729729350404,6.97839,2513.6,2513.1,0.03787554]
[1729729350631,4.6084,2514.0,2513.5,3.9785]
[1729729350851,5.58574,2514.3,2513.7,3.97818]
[1729729351153,3.0,2514.0,2513.7,3.97816]
[1729729351320,3.0,2514.2,2513.7,4.53568355]
[1729729351529,3.0,2514.2,2513.8,0.03787554]
[1729729351846,3.97765,2514.1,2513.6,1.5589]
[1729729352035,3.97765,2514.1,2513.9,0.03787554]
[1729729352234,3.97765,2514.1,2513.6,1.5589]
[1729729352440,6.97765,2514.1,2514.0,0.03787554]
[1729729352624,6.97765,2514.1,2513.6,1.5589]
[1729729352625,3.97777,2514.0,2513.6,1.5589]
[1729729352845,3.97777,2514.0,2513.7,0.03787554]
[1729729353629,3.97772,2514.0,2513.7,0.03787554]
[1729729354314,3.97788,2513.9,2513.7,0.03787554]
[1729729354747,3.97773,2514.0,2513.7,0.03787554]
[1729729356533,10.68236898,2513.8,2513.7,0.03787554]
[1729729356929,3.97868,2513.4,2512.9,4.30617977]
[1729729357258,6.70432898,2513.8,2513.0,0.03787554]
[1729729357446,3.97901,2513.2,2513.0,0.03787554]
[1729729357636,3.97914,2513.1,2512.8,1.5589]
[1729729358236,1.6084,2513.4,2512.8,1.5589]
[1729729358237,3.97891,2513.3,2512.8,1.5589]
[1729729358451,3.9791,2513.2,2512.8,1.5589]
[1729729359156,3.97917,2513.1,2512.7,0.1242593]
[1729729359362,3.97933,2513.0,2512.7,0.1242593]
[1729729359737,3.97917,2513.1,2512.7,0.1242593]
[1729729360055,3.97892,2513.3,2512.7,4.67033623]
[1729729360263,3.97892,2513.3,2512.7,4.67026623]
[1729729360554,3.0,2513.4,2512.7,4.39490521]
[1729729360763,7.95724,2513.5,2512.9,7.68377898]
[1729729360923,3.97862,2513.5,2512.9,7.68377898]
[1729729361565,3.97862,2513.5,2513.0,3.97927]
[1729729361929,3.97859,2513.5,2513.0,3.97927]
[1729729362130,3.97835,2513.6,2513.0,3.97917]
[1729729362462,3.97835,2513.6,2513.0,5.36885694]
[1729729362645,3.97835,2513.6,2513.2,1.5589]
[1729729363020,3.97835,2513.6,2512.7,20.0842593]
[1729729363021,5.58739,2513.2,2512.7,20.0842593]
[1729729363224,3.97923,2513.1,2512.7,0.1242593]
[1729729363519,3.97841,2513.6,2512.8,5.26322898]
[1729729363770,1.6084,2513.7,2513.0,3.70432898]
[1729729363965,3.97845,2513.6,2512.9,4.51810883]
[1729729365510,3.97845,2513.6,2513.0,0.03802546]
[1729729365698,7.95693,2513.6,2513.0,0.03802546]
[1729729366379,3.97852,2513.5,2513.0,0.03802546]
[1729729366579,3.97852,2513.5,2513.0,1.01996179]
[1729729367372,3.0,2513.6,2513.0,4.72429077]
[1729729367593,3.0,2513.6,2513.1,1.5589]
[1729729368103,3.0,2513.7,2513.1,5.53803]
[1729729368302,3.97816,2513.8,2513.2,0.11759496]
[1729729368514,3.0,2513.8,2513.2,3.82192394]
[1729729368823,3.0,2513.8,2513.3,2.33899639]
[1729729369039,3.97789,2513.9,2513.3,2.41856489]
[1729729369219,4.6084,2514.1,2513.4,3.74213337]
[1729729369220,3.97759,2514.1,2513.4,3.74213337]
[1729729369404,9.29107898,2513.6,2513.4,0.03780439]
[1729729369606,9.29107898,2513.6,2512.8,1.80782701]
[1729729369802,3.97915,2513.1,2512.8,1.5589]
[1729729370008,3.97915,2513.1,2512.9,0.03778429]
[1729729370493,3.97901,2513.2,2512.9,0.03778429]
[1729729370798,3.97878,2513.4,2512.9,0.03778429]
[1729729371201,3.97897,2513.3,2512.9,0.03778429]
[1729729371402,3.97909,2513.2,2512.9,0.03778429]
[1729729373042,7.95794,2513.3,2512.9,0.03778429]
[1729729373496,3.97897,2513.3,2512.9,0.03778429]
[1729729373833,7.95794,2513.3,2512.9,0.03778429]
[1729729374694,3.979,2513.2,2512.9,0.03778429]
[1729729374989,7.95792,2513.3,2512.9,0.03778429]
[1729729375408,3.97903,2513.2,2512.9,0.03778429]
[1729729378302,3.97895,2513.3,2512.9,0.03778429]
[1729729378496,7.95793,2513.3,2512.9,0.03778429]
[1729729378698,3.979,2513.2,2512.9,0.03778429]
[1729729382044,3.97895,2513.3,2512.9,0.03778429]
[1729729382201,7.95792,2513.3,2512.9,0.03778429]
[1729729382403,3.97901,2513.2,2512.9,0.03778429]
[1729729388636,3.97922,2513.1,2512.9,0.03778429]
[1729729391542,3.97899,2513.2,2512.9,0.03778429]
[1729729394964,7.95776,2513.3,2512.9,0.03778429]
[1729729395316,3.97901,2513.2,2512.9,0.03778429]
[1729729396946,3.97884,2513.3,2512.9,0.03778429]
[1729729397254,3.97832,2513.7,2513.2,1.5265]
[1729729397458,3.9783,2513.7,2513.2,1.5265]
[1729729397666,3.97799,2513.9,2513.3,0.03783982]
[1729729397870,3.97799,2513.9,2513.4,1.5265]
[1729729398160,3.97799,2513.9,2513.5,0.03762882]
[1729729398321,3.97768,2514.1,2513.6,1.5265]
[1729729398523,3.97768,2514.1,2513.7,0.03761877]
[1729729398762,7.95533,2514.1,2513.7,0.03761877]
[1729729399124,3.97775,2514.0,2513.7,0.03761877]
[1729729400140,3.97793,2513.9,2513.7,0.03761877]
[1729729400339,3.97775,2514.0,2513.7,0.03761877]
[1729729401578,5.45764,2513.8,2513.7,0.03761877]
[1729729401884,3.97859,2513.5,2513.2,1.5265]
[1729729402089,3.9788,2513.4,2513.2,1.5265]
[1729729402656,3.97859,2513.5,2513.2,1.5265]
[1729729402958,3.97883,2513.3,2513.2,1.5265]
[1729729404591,3.97899,2513.2,2512.8,1.85453646]
[1729729404807,3.97891,2513.3,2512.8,1.6056]
[1729729405104,3.97882,2513.4,2512.8,5.58513]
[1729729405300,3.97882,2513.4,2512.9,0.57093893]
[1729729405459,3.97852,2513.5,2513.0,1.6056]
[1729729405659,3.97866,2513.5,2513.0,1.6056]
[1729729405992,3.97875,2513.4,2513.0,1.6056]
[1729729406293,3.97875,2513.4,2513.0,2.22119889]
[1729729408291,3.97852,2513.5,2513.0,2.22119889]
[1729729410824,3.97819,2513.7,2513.1,1.6056]
[1729729411007,3.9779,2513.9,2513.3,3.97875]
[1729729411213,3.9779,2513.9,2513.5,1.6056]
[1729729412635,3.9777,2514.1,2513.5,5.66364175]
[1729729412928,3.97773,2514.0,2513.5,5.58408]
[1729729413379,3.97773,2514.0,2513.5,3.97848]
[1729729413577,3.97773,2514.0,2513.6,1.6056]
[1729729413782,3.97773,2514.0,2513.6,2.6016485]
[1729729414543,3.97756,2514.1,2513.6,6.5799785]
[1729729415039,3.97756,2514.1,2513.6,2.6016485]
[1729729415252,3.9774,2514.2,2513.6,2.6016485]
[1729729415407,3.97774,2514.0,2513.6,2.6016485]
[1729729416343,3.97795,2513.9,2513.6,1.6056]
[1729729416640,3.97867,2513.4,2513.3,19.96]
[1729729421443,3.97884,2513.3,2513.0,1.6056]
[1729729424945,3.97883,2513.3,2513.0,1.6056]
[1729729429863,3.97867,2513.4,2513.0,1.6056]
[1729729430567,3.97852,2513.5,2513.0,5.58488]
[1729729431644,3.97868,2513.4,2513.0,1.6056]
[1729729435066,3.97868,2513.4,2513.0,5.58489]
[1729729436054,3.97868,2513.4,2513.0,1.6056]
[1729729436257,3.97868,2513.4,2513.0,2.164097]
[1729729439683,3.97849,2513.6,2513.1,5.5003]
[1729729440006,7.95696,2513.6,2513.2,1.5213]
[1729729440207,3.97847,2513.6,2513.2,1.5213]
[1729729440409,3.97847,2513.6,2513.3,0.550033]
[1729729442290,3.97821,2513.7,2513.3,0.550033]
[1729729443048,3.97814,2513.8,2513.3,0.550033]
[1729729443218,3.97836,2513.6,2513.3,0.550033]
[1729729443741,3.97851,2513.5,2513.2,1.5213]
[1729729444110,3.97836,2513.6,2513.2,1.5213]
[1729729444310,5.80387629,2513.6,2513.2,1.5213]
[1729729444714,5.80387629,2513.6,2513.2,5.50028]
[1729729444921,3.97836,2513.6,2513.3,0.550028]
[1729729445847,5.80373629,2513.7,2513.3,0.550028]
[1729729447151,9.78202629,2513.7,2513.3,0.550028]
[1729729447554,5.80373629,2513.7,2513.3,0.550028]
[1729729448120,3.97822,2513.7,2513.3,4.528848]
[1729729448321,3.97822,2513.7,2513.5,1.5213]
[1729729449555,5.80355629,2513.8,2513.5,1.5213]
[1729729449732,1.4585,2514.4,2513.8,1.5341]
[1729729449926,3.97753,2514.2,2513.8,3.35961629]
[1729729450272,3.97753,2514.2,2513.9,1.82551629]
[1729729450462,3.97753,2514.2,2513.8,3.35961629]
[1729729450836,3.97758,2514.1,2513.8,4.49916531]
[1729729451275,3.97752,2514.2,2513.8,4.49916531]
[1729729451476,3.97752,2514.2,2513.9,1.82551629]
[1729729452281,3.97752,2514.2,2513.8,2.67364902]
[1729729452867,3.97752,2514.2,2513.8,6.73118938]
[1729729453039,3.97752,2514.2,2513.9,1.07092794]
[1729729453234,3.97725,2514.3,2513.9,1.07092794]
[1729729453482,3.97685,2514.6,2514.1,3.97749]
[1729729453640,3.97685,2514.6,2514.2,1.5341]
[1729729454030,3.97626,2515.0,2514.5,1.5341]
[1729729454275,3.97592,2515.2,2514.8,3.97644]
[1729729454479,5.43372,2515.6,2514.9,1.5341]
[1729729454773,3.97578,2515.3,2514.9,1.5341]
[1729729455284,1.4585,2515.6,2514.9,1.5341]
[1729729455444,3.97573,2515.3,2514.9,1.5341]
[1729729456274,7.95151,2515.3,2514.9,1.5341]
[1729729456639,3.97573,2515.3,2514.9,1.5341]
[1729729456840,7.95148,2515.3,2514.9,1.5341]
[1729729457166,3.97573,2515.3,2514.9,2.085157]
[1729729457737,7.95147,2515.3,2514.9,2.085157]
[1729729459164,3.97573,2515.3,2514.9,2.085157]
[1729729461625,7.95149,2515.3,2514.9,2.085157]
[1729729461756,3.97573,2515.3,2514.9,2.085157]
[1729729466487,3.97573,2515.3,2514.9,1.5341]
[1729729467009,3.97573,2515.3,2514.3,3.98722]
[1729729467010,3.97657,2514.8,2514.2,3.97727]
[1729729467200,3.97662,2514.7,2514.2,3.97727]
[1729729468972,7.95335,2514.7,2514.2,3.97727]
[1729729469197,7.95335,2514.7,2514.3,0.546007]
[1729729469512,3.97662,2514.7,2514.3,0.546007]
[1729729470309,3.97646,2514.8,2514.3,4.60267349]
[1729729470616,3.97646,2514.8,2514.4,1.4828]
[1729729471705,7.95251,2515.0,2514.5,3.97692]
[1729729472011,3.97623,2515.0,2514.6,0.943668]
[1729729473021,3.97641,2514.9,2514.6,0.943668]
[1729729474013,3.97623,2515.0,2514.6,0.943668]
[1729729474518,3.97643,2514.9,2514.6,0.943668]
[1729729475518,7.95252,2515.0,2514.6,0.943668]
[1729729476397,7.95252,2515.0,2514.6,2.76707405]
[1729729476659,3.97592,2515.2,2514.8,3.30620605]
[1729729476802,3.97608,2515.1,2514.8,1.4828]
[1729729477003,3.97608,2515.1,2514.8,2.35465819]
[1729729478189,3.97608,2515.1,2514.8,4.17806424]
[1729729478397,3.97608,2515.1,2514.8,2.35465819]
[1729729479813,3.97606,2515.1,2514.8,2.35465819]
[1729729480720,7.95213,2515.1,2514.8,2.35465819]
[1729729480921,3.97614,2515.0,2514.8,2.35465819]
[1729729481096,3.97614,2515.0,2514.8,1.4828]
[1729729482318,1.5976,2514.9,2514.4,0.05191396]
[1729729482477,3.97676,2514.7,2514.1,4.02940396]
[1729729482680,3.97676,2514.7,2514.2,0.24879773]
[1729729482681,3.97686,2514.6,2514.2,0.24879773]
[1729729482913,3.97686,2514.6,2514.3,0.24879773]
[1729729483118,3.97694,2514.5,2514.2,0.42782017]
[1729729483320,3.97694,2514.5,2514.3,0.24880438]
[1729729483523,3.97678,2514.6,2514.4,0.24880438]
[1729729483700,3.97678,2514.6,2514.3,1.4828]
[1729729483904,3.97678,2514.6,2514.4,0.24880123]
[1729729484086,3.97695,2514.5,2514.3,2.07680041]
[1729729484291,3.97695,2514.5,2514.3,1.4828]
[1729729485225,3.97678,2514.6,2514.3,1.4828]
[1729729487300,3.97702,2514.5,2514.3,1.4828]
[1729729487513,3.97702,2514.5,2514.2,0.42782017]
[1729729495506,3.97678,2514.6,2514.2,0.42782017]
[1729729495707,3.97709,2514.4,2514.2,0.42782017]
[1729729496505,3.97693,2514.5,2514.2,0.42782017]
[1729729497412,3.97678,2514.6,2514.2,0.42782017]
[1729729497628,7.95367,2514.6,2514.2,0.42782017]
[1729729498636,3.97678,2514.6,2514.2,0.42782017]
[1729729498846,1.4724,2514.5,2514.2,0.42782017]
[1729729499045,3.9771,2514.4,2514.2,0.42782017]
[1729729499247,3.9771,2514.4,2514.1,1.4828]
[1729729499412,3.97725,2514.3,2514.1,1.4828]
[1729729500508,3.97725,2514.3,2514.0,0.24882784]
[1729729500509,3.97748,2514.2,2513.9,21.4944]
[1729729502211,3.97748,2514.2,2513.9,23.31857855]
[1729729502413,3.97725,2514.3,2514.0,2.72965886]
[1729729503838,3.97717,2514.4,2514.0,2.72965886]
[1729729504322,3.97717,2514.4,2514.0,4.55383741]
[1729729504522,3.97717,2514.4,2513.9,7.33639855]
[1729729504943,5.44942,2514.5,2514.0,0.24882091]
[1729729505255,3.97725,2514.3,2513.9,7.33639855]
[1729729505951,3.9771,2514.4,2513.9,7.33639855]
[1729729506718,3.97702,2514.5,2514.1,1.82417855]
[1729729506922,3.97702,2514.5,2514.1,2.98046563]
[1729729507473,3.97615,2515.0,2514.5,1.5344]
[1729729507635,4.04506431,2515.1,2514.6,3.97676]
[1729729507636,3.97608,2515.1,2514.6,3.97676]
[1729729507957,7.95219,2515.1,2514.7,0.55906886]
[1729729508128,3.97614,2515.0,2514.5,1.5344]
[1729729508954,3.97641,2514.9,2514.5,1.5344]
[1729729509174,3.97664,2514.7,2514.3,1.5532]
[1729729509364,3.97695,2514.5,2514.2,19.96]
[1729729509656,3.97695,2514.5,2514.0,5.53081]
[1729729509856,3.97695,2514.5,2514.0,6.66930501]
[1729729510162,3.97695,2514.5,2514.1,0.24881452]
[1729729510344,3.97695,2514.5,2514.0,10.64690501]
[1729729510514,3.97695,2514.5,2514.1,0.24881126]
[1729729510714,3.97695,2514.5,2514.0,10.64690501]
[1729729510957,3.97695,2514.5,2514.1,1.31350181]
[1729729511151,3.97695,2514.5,2514.1,1.0646905]
[1729729512069,3.97695,2514.5,2514.1,5.0422505]
[1729729512434,3.97677,2514.6,2514.2,0.24881088]
[1729729512753,7.95364,2514.6,2514.1,5.0422505]
[1729729512957,3.97677,2514.6,2514.2,0.24881398]
[1729729513255,3.97677,2514.6,2514.1,5.0422505]
[1729729513421,3.97677,2514.6,2514.2,0.24881396]
[1729729513622,3.97677,2514.6,2514.1,5.0422505]
[1729729513823,7.95363,2514.6,2514.1,5.0422505]
[1729729514017,3.97677,2514.6,2514.2,0.248814]
[1729729514292,3.97683,2514.6,2514.1,1.0646905]
[1729729514494,3.977,2514.5,2514.1,1.0646905]
[1729729514898,7.95371,2514.6,2514.1,5.0422405]
[1729729515409,3.97683,2514.6,2514.1,5.0422405]
[1729729516908,3.97683,2514.6,2514.1,1.0646905]
[1729729517211,3.97683,2514.6,2514.1,5.0421805]
[1729729519015,7.95369,2514.6,2514.1,5.0421805]
[1729729519314,1.4996,2514.8,2514.1,1.0646905]
[1729729519516,3.97685,2514.6,2514.1,1.0646905]